bitfinex-derivatives/quotes_BTCF0:USTF0_20250324
["timestamp","ask_amount","ask_price","bid_price","bid_amount"]
[1742837694676,0.72315647,88448.0,88447.0,0.02045225]
[1742837695475,0.72315647,88448.0,88447.0,0.01045225]
[1742837695675,0.72315647,88448.0,88447.0,0.00045225]
[1742837696667,0.72315647,88448.0,88447.0,0.01045225]
[1742837697474,0.83487647,88448.0,88447.0,0.01045225]
[1742837697876,0.80923353,88448.0,88447.0,0.02045225]
[1742837698070,0.75543353,88448.0,88447.0,0.02045225]
[1742837698276,0.75543353,88448.0,88447.0,0.13315225]
[1742837698471,0.70001353,88448.0,88447.0,0.13315225]
[1742837698668,0.81173353,88448.0,88447.0,0.13315225]
[1742837699465,0.70001353,88448.0,88447.0,0.13315225]
[1742837699876,0.81173353,88448.0,88447.0,0.13315225]
[1742837700974,0.70001353,88448.0,88447.0,0.13315225]
[1742837701173,0.81173353,88448.0,88447.0,0.13315225]
[1742837702671,0.1130623,88445.0,88444.0,0.00016954]
[1742837702979,0.1130751,88435.0,88434.0,0.1105]
[1742837703178,0.58671511,88435.0,88434.0,0.16162]
[1742837703500,0.69601511,88435.0,88434.0,0.1605]
[1742837703980,0.80908036,88435.0,88434.0,0.1605]
[1742837704182,0.80908036,88435.0,88434.0,0.1625]
[1742837705881,0.80908036,88435.0,88434.0,0.052]
[1742837706180,0.86378036,88435.0,88434.0,0.052]
[1742837706383,0.86378036,88435.0,88434.0,0.01240724]
[1742837706590,0.0565411,88430.0,88414.0,0.15562534]
[1742837706884,0.1130994,88416.0,88415.0,0.17739241]
[1742837707083,0.2258994,88416.0,88415.0,0.17739241]
[1742837707970,0.39419278,88416.0,88415.0,0.22989241]
[1742837708278,0.41331582,88416.0,88415.0,0.22989241]
[1742837710485,0.42298487,88416.0,88415.0,0.22989241]
[1742837712583,0.31126487,88416.0,88415.0,0.22989241]
[1742837712883,0.42298487,88416.0,88415.0,0.22989241]
[1742837713076,0.42298487,88416.0,88415.0,0.22885241]
[1742837713274,0.25468547,88416.0,88415.0,0.22885241]
[1742837713475,0.36778487,88416.0,88415.0,0.22989241]
[1742837713884,0.36778487,88416.0,88415.0,0.22885241]
[1742837716186,0.36778487,88416.0,88415.0,0.22993241]
[1742837716382,0.36778487,88416.0,88415.0,0.22885241]
[1742837718084,0.42238487,88416.0,88415.0,0.22885241]
[1742837718994,0.47938487,88416.0,88415.0,0.22885241]
[1742837720995,0.47938487,88416.0,88415.0,0.12265241]
[1742837723095,0.31066487,88416.0,88415.0,0.12265241]
[1742837723401,0.30928547,88416.0,88415.0,0.12369241]
[1742837723603,0.30928547,88416.0,88415.0,0.08832769]
[1742837723604,0.31818942,88416.0,88415.0,0.08832769]
[1742837723793,0.37668882,88416.0,88415.0,0.08832769]
[1742837724193,0.43048882,88416.0,88415.0,0.07104]
[1742837724395,0.48608882,88416.0,88415.0,0.07104]
[1742837724704,0.36546487,88416.0,88415.0,0.07104]
[1742837724896,0.47718487,88416.0,88415.0,0.07104]
[1742837728207,0.47718487,88416.0,88415.0,0.07]
[1742837734412,0.47718487,88416.0,88415.0,0.03039589]
[1742837734609,0.1131096,88408.0,88403.0,0.0519]
[1742837734801,0.11414961,88408.0,88407.0,0.02120964]
[1742837735008,0.21684961,88408.0,88407.0,0.02120964]
[1742837735304,0.44163195,88408.0,88407.0,0.02120964]
[1742837736303,0.44163195,88408.0,88407.0,0.02016964]
[1742837737213,0.44163195,88408.0,88407.0,0.02116964]
[1742837737707,0.45051051,88408.0,88407.0,0.02116964]
[1742837740609,0.45051051,88408.0,88407.0,0.00343589]
[1742837740915,0.45051051,88408.0,88407.0,0.01343589]
[1742837741710,0.44163195,88408.0,88407.0,0.01343589]
[1742837742306,0.44163195,88408.0,88400.0,0.1]
[1742837742307,0.1131186,88401.0,88400.0,0.1]
[1742837742502,0.47495861,88401.0,88400.0,0.19104]
[1742837742898,0.58265861,88401.0,88400.0,0.30244]
[1742837743106,0.69577118,88401.0,88400.0,0.19104]
[1742837743415,0.69577118,88401.0,88400.0,0.2452]
[1742837743615,0.69577118,88401.0,88400.0,0.35818]
[1742837743816,0.69577118,88401.0,88400.0,0.36018]
[1742837744112,0.69577118,88401.0,88400.0,0.26537032]
[1742837744319,0.75027118,88401.0,88400.0,0.11386064]
[1742837744510,0.75027118,88401.0,88400.0,0.11278064]
[1742837744707,0.75027118,88401.0,88400.0,0.07317096]
[1742837745210,0.75027118,88401.0,88400.0,0.03356128]
[1742837745416,0.80015567,88401.0,88400.0,0.03356128]
[1742837745607,0.80015567,88401.0,88399.0,1e-08]
[1742837745608,0.1131199,88400.0,88399.0,1e-08]
[1742837745808,0.13758748,88400.0,88399.0,0.02000001]
[1742837746115,0.1131403,88384.0,88383.0,0.00045257]
[1742837746313,0.5863003,88384.0,88383.0,0.14045257]
[1742837746513,0.5863003,88384.0,88383.0,0.14157257]
[1742837746714,0.61016787,88384.0,88383.0,0.14157257]
[1742837746913,0.77529068,88384.0,88383.0,0.10196289]
[1742837747220,0.77529068,88384.0,88383.0,0.10084289]
[1742837747221,0.75142311,88384.0,88383.0,0.10084289]
[1742837747409,0.75146311,88384.0,88383.0,0.10084289]
[1742837747611,0.75146311,88384.0,88383.0,0.10688289]
[1742837747809,0.63974311,88384.0,88383.0,0.10688289]
[1742837748017,0.75146311,88384.0,88383.0,0.10688289]
[1742837749211,0.75146311,88384.0,88383.0,0.11688289]
[1742837749816,0.80456311,88384.0,88383.0,0.11188289]
[1742837750214,0.69284311,88384.0,88383.0,0.11188289]
[1742837750417,0.22694311,88384.0,88383.0,0.11188289]
[1742837750611,0.33866311,88384.0,88383.0,0.11188289]
[1742837751224,0.39276311,88384.0,88383.0,0.11188289]
[1742837751417,0.33866311,88384.0,88383.0,0.11188289]
[1742837752012,0.39276311,88384.0,88383.0,0.11188289]
[1742837752818,0.44366311,88384.0,88383.0,0.11188289]
[1742837753016,0.33866311,88384.0,88383.0,0.11188289]
[1742837753215,0.3608,88412.0,88383.0,0.11188289]
[1742837753216,0.3608,88412.0,88394.0,0.1131269]
[1742837753422,0.0565583,88403.0,88401.0,0.3608]
[1742837753623,0.52392,88402.0,88387.0,0.35]
[1742837753817,0.1131339,88389.0,88388.0,0.0533]
[1742837754121,0.2256939,88389.0,88388.0,0.19414]
[1742837754328,0.33883078,88389.0,88388.0,0.19414]
[1742837754930,0.33983078,88389.0,88388.0,0.19414]
[1742837755125,0.22811078,88389.0,88388.0,0.19414]
[1742837755332,0.33983078,88389.0,88388.0,0.19414]
[1742837755628,0.27951078,88389.0,88388.0,0.19414]
[1742837755923,0.39123078,88389.0,88388.0,0.19414]
[1742837757219,0.44623078,88389.0,88388.0,0.19414]
[1742837759124,0.22811078,88389.0,88388.0,0.3072752]
[1742837759320,0.0565612,88398.0,88396.0,0.113125]
[1742837759528,0.0565587,88402.0,88396.0,0.80638]
[1742837759726,0.1657144,88405.0,88404.0,0.1131147]
[1742837760032,0.16631441,88405.0,88404.0,0.7949947]
[1742837760328,0.27945129,88405.0,88404.0,0.68188]
[1742837761417,0.33295129,88405.0,88404.0,0.68188]
[1742837763543,0.33395129,88405.0,88404.0,0.68188]
[1742837764039,0.33395129,88405.0,88404.0,0.32108]
[1742837772535,0.44563129,88405.0,88404.0,0.32108]
[1742837773031,0.16633689,88405.0,88404.0,0.4341947]
[1742837773229,0.0254046,88411.0,88410.0,0.1131071]
[1742837773430,0.82188,88421.0,88418.0,0.1130944]
[1742837773622,0.0537,88420.0,88419.0,0.3608]
[1742837773822,0.16791431,88420.0,88419.0,0.8595156]
[1742837774033,0.29842437,88420.0,88419.0,0.8595156]
[1742837774828,0.30142437,88420.0,88419.0,0.8595156]
[1742837775534,0.0565439,88426.0,88423.0,0.169635]
[1742837775734,0.11184964,88428.0,88427.0,0.1130853]
[1742837776031,0.00016964,88428.0,88427.0,0.8352853]
[1742837776231,0.11326686,88428.0,88427.0,0.8352853]
[1742837776433,0.14097724,88948.0,88435.0,0.1130738]
[1742837776629,0.0565288,88449.0,88448.0,0.1130572]
[1742837776830,0.0549,88455.0,88448.0,0.9238572]
[1742837777037,0.0549,88455.0,88452.0,0.1695769]
[1742837777238,0.224477,88455.0,88454.0,0.1130508]
[1742837777433,0.224477,88455.0,88454.0,0.4749308]
[1742837777632,0.28263075,88455.0,88454.0,0.4749308]
[1742837778229,0.30133459,88455.0,88454.0,0.35188]
[1742837778429,0.30133459,88455.0,88454.0,0.2105179]
[1742837778430,0.82777459,88455.0,88454.0,0.2105179]
[1742837778637,0.82777459,88455.0,88446.0,0.00016964]
[1742837778638,0.1130597,88447.0,88446.0,0.00016964]
[1742837778836,0.11365971,88447.0,88446.0,0.02]
[1742837779037,0.00060001,88447.0,88436.0,0.3608]
[1742837779347,0.1130725,88437.0,88436.0,0.5947538]
[1742837779541,0.1139925,88437.0,88436.0,0.5947538]
[1742837779736,0.1139925,88437.0,88436.0,0.48168]
[1742837780039,0.22706159,88437.0,88436.0,0.48168]
[1742837780241,0.33216159,88437.0,88436.0,0.48168]
[1742837780737,0.33216159,88437.0,88436.0,0.12088]
[1742837780944,0.33316159,88437.0,88436.0,0.12088]
[1742837781138,0.33316159,88437.0,88436.0,0.48168]
[1742837782545,0.33316159,88437.0,88436.0,0.12088]
[1742837783840,0.28066159,88437.0,88436.0,0.2339538]
[1742837784038,0.28066159,88437.0,88436.0,0.12088]
[1742837784537,0.27966159,88437.0,88436.0,0.12088]
[1742837785140,0.27966159,88437.0,88436.0,0.12188]
[1742837785545,0.27966159,88437.0,88436.0,0.2349538]
[1742837785745,0.27966159,88437.0,88436.0,0.2339538]
[1742837785934,0.28066159,88437.0,88436.0,0.2339538]
[1742837787744,0.27966159,88437.0,88436.0,0.2339538]
[1742837790543,0.27966159,88437.0,88436.0,0.12088]
[1742837790849,0.27966159,88437.0,88436.0,0.2339538]
[1742837791645,0.28066159,88437.0,88436.0,0.2339538]
[1742837792153,0.27966159,88437.0,88436.0,0.2339538]
[1742837794555,0.10998695,88437.0,88436.0,0.2339538]
[1742837794761,0.22433945,88437.0,88436.0,0.2916538]
[1742837794945,0.22433945,88437.0,88436.0,0.3474538]
[1742837795350,0.27773945,88437.0,88436.0,0.3474538]
[1742837796454,0.27773945,88437.0,88436.0,0.2916538]
[1742837796859,0.27773945,88437.0,88436.0,0.3475538]
[1742837798153,0.01670384,88455.0,88436.0,0.23448]
[1742837798353,0.1130661,88442.0,88441.0,0.1130661]
[1742837798554,0.1130661,88442.0,88441.0,0.9544061]
[1742837798748,0.2264661,88442.0,88441.0,0.9544061]
[1742837799356,0.33954158,88442.0,88441.0,0.9544061]
[1742837800243,0.34054158,88442.0,88441.0,0.9544061]
[1742837800448,0.34054158,88442.0,88441.0,0.8990061]
[1742837800647,0.34054158,88442.0,88441.0,0.67244]
[1742837801250,0.45214158,88442.0,88441.0,0.67244]
[1742837803655,0.46881786,88442.0,88441.0,0.67244]
[1742837807658,0.46881786,88442.0,88441.0,0.31164]
[1742837815080,0.35721786,88442.0,88441.0,0.31164]
[1742837815278,0.46877786,88442.0,88441.0,0.31164]
[1742837817280,0.35571176,88442.0,88441.0,0.4247074]
[1742837817582,0.46877786,88442.0,88441.0,0.4247074]
[1742837817783,0.46877786,88442.0,88441.0,0.31164]
[1742837818472,0.22747548,88442.0,88441.0,0.36944]
[1742837818673,0.17167548,88442.0,88441.0,0.6048074]
[1742837819372,0.17167548,88442.0,88441.0,0.4347074]
[1742837819777,0.17167548,88442.0,88441.0,0.5479074]
[1742837819989,0.28474158,88442.0,88441.0,0.5479074]
[1742837820391,0.34014158,88442.0,88441.0,0.5479074]
[1742837822687,0.34014158,88442.0,88441.0,0.5379074]
[1742837829297,0.34014158,88442.0,88441.0,0.31164]
[1742837831291,0.45166158,88442.0,88441.0,0.31164]
[1742837834491,0.45166158,88442.0,88428.0,0.11461104]
[1742837834492,0.1130802,88431.0,88430.0,0.20125821]
[1742837834687,0.22564021,88431.0,88430.0,0.24049821]
[1742837834891,0.34224021,88431.0,88430.0,0.24049821]
[1742837835292,0.4553093,88431.0,88430.0,0.24049821]
[1742837835693,0.3437893,88431.0,88430.0,0.24049821]
[1742837835889,0.2307091,88431.0,88430.0,0.71437971]
[1742837836091,0.1720091,88431.0,88430.0,0.71437971]
[1742837836292,0.11306909,88431.0,88430.0,0.71537971]
[1742837836488,0.0587,88438.0,88437.0,0.1130725]
[1742837836693,0.0587,88438.0,88437.0,0.8904125]
[1742837837188,0.00016964,88439.0,88438.0,0.1130713]
[1742837837387,0.0565195,88464.0,88455.0,0.1130495]
[1742837837592,0.13383574,88456.0,88455.0,0.4240895]
[1742837837803,0.13487575,88456.0,88455.0,0.4240895]
[1742837837989,0.24794867,88456.0,88455.0,0.4240895]
[1742837838396,0.36214867,88456.0,88455.0,0.4812895]
[1742837839601,0.36314867,88456.0,88455.0,0.4812895]
[1742837840692,0.36314867,88456.0,88455.0,0.36824]
[1742837840892,0.36314867,88456.0,88455.0,0.4812895]
[1742837845298,0.36314867,88456.0,88455.0,0.36824]
[1742837845706,0.36314867,88456.0,88455.0,0.4812895]
[1742837846293,0.36314867,88456.0,88455.0,0.31104]
[1742837848498,0.36314867,88456.0,88455.0,0.4240895]
[1742837849104,0.36314867,88456.0,88455.0,0.5374895]
[1742837849305,0.34276113,88456.0,88455.0,0.5374895]
[1742837849904,0.34276113,88456.0,88455.0,0.42444]
[1742837850102,0.34276113,88456.0,88455.0,0.5374895]
[1742837850909,0.34276113,88456.0,88455.0,0.42444]
[1742837851103,0.34276113,88456.0,88455.0,0.5374895]
[1742837854414,0.34276113,88456.0,88455.0,0.36694]
[1742837854611,0.34276113,88456.0,88455.0,0.31104]
[1742837855117,0.70356113,88456.0,88455.0,0.31104]
[1742837855608,0.72924877,88456.0,88455.0,0.31104]
[1742837855809,0.1130585,88448.0,88447.0,0.00016964]
[1742837856006,0.1130585,88448.0,88447.0,0.04092964]
[1742837856007,0.2252985,88448.0,88447.0,0.04092964]
[1742837856197,0.2818985,88448.0,88447.0,0.04092964]
[1742837856607,0.39494969,88448.0,88447.0,0.04092964]
[1742837856810,0.39494969,88448.0,88447.0,0.04016964]
[1742837857009,0.75574969,88448.0,88447.0,0.04016964]
[1742837857216,0.75674969,88448.0,88447.0,0.04016964]
[1742837858008,0.75674969,88448.0,88431.0,0.4173399]
[1742837858009,0.1130764,88434.0,88433.0,0.05]
[1742837858206,0.1130764,88434.0,88433.0,0.18076]
[1742837858207,0.2253164,88434.0,88433.0,0.18076]
[1742837858413,0.2819164,88434.0,88433.0,0.18076]
[1742837858611,0.39497782,88434.0,88433.0,0.3501376]
[1742837858909,0.39497782,88434.0,88433.0,0.4068376]
[1742837859212,0.00016964,88442.0,88441.0,0.1130674]
[1742837859412,0.00112965,88442.0,88441.0,0.8749074]
[1742837859617,0.00016964,88442.0,88441.0,0.8749074]
[1742837860014,0.11323873,88442.0,88441.0,0.8749074]
[1742837860205,0.3608,88483.0,88452.0,0.1695768]
[1742837860206,0.0565266,88453.0,88452.0,0.1695768]
[1742837860412,0.17053871,88453.0,88452.0,0.7213368]
[1742837860915,0.28359373,88453.0,88452.0,0.7213368]
[1742837861316,0.17054163,88453.0,88452.0,0.7213368]
[1742837861618,0.1738505,88455.0,88454.0,0.1130508]
[1742837861913,0.0565157,88470.0,88469.0,0.1130291]
[1742837862113,0.17015011,88470.0,88469.0,0.7167091]
[1742837862314,0.11040635,88476.0,88475.0,0.113024]
[1742837862522,0.23387249,88476.0,88475.0,0.554504]
[1742837862713,0.23239209,88476.0,88475.0,0.554504]
[1742837863109,0.34541772,88476.0,88475.0,0.554504]
[1742837863613,0.35690377,88476.0,88475.0,0.554504]
[1742837863820,0.24649742,88476.0,88475.0,0.554504]
[1742837864016,0.24505742,88476.0,88475.0,0.554504]
[1742837866106,0.24505742,88476.0,88475.0,0.673904]
[1742837866510,0.24505742,88476.0,88475.0,0.56088]
[1742837866511,0.24506698,88476.0,88475.0,0.56088]
[1742837866715,0.30156698,88476.0,88475.0,0.50108]
[1742837867015,0.30216699,88476.0,88475.0,0.614104]
[1742837867221,0.24566699,88476.0,88475.0,0.614104]
[1742837867420,0.24506698,88476.0,88475.0,0.614104]
[1742837867617,0.24650698,88476.0,88475.0,0.614104]
[1742837867814,0.30300698,88476.0,88475.0,0.50108]
[1742837868323,0.30309782,88476.0,88475.0,0.50108]
[1742837868619,0.30309782,88476.0,88475.0,0.614104]
[1742837869316,0.30309782,88476.0,88475.0,0.43148]
[1742837869711,0.30309782,88476.0,88475.0,0.544504]
[1742837870112,0.23753438,88476.0,88475.0,0.544504]
[1742837870419,0.24510613,88476.0,88475.0,0.665904]
[1742837870619,0.24654613,88476.0,88475.0,0.726304]
[1742837872023,0.24654455,88476.0,88475.0,0.726304]
[1742837873125,0.24654455,88476.0,88475.0,0.605804]
[1742837873423,0.30304455,88476.0,88475.0,0.605804]
[1742837874017,0.30299117,88476.0,88475.0,0.605804]
[1742837875718,0.30299117,88476.0,88475.0,0.49278]
[1742837875917,0.30303752,88476.0,88475.0,0.49278]
[1742837876116,0.30303752,88476.0,88475.0,0.605804]
[1742837877114,0.36143752,88476.0,88475.0,0.605804]
[1742837877822,0.36143769,88476.0,88475.0,0.605804]
[1742837878919,0.36143769,88476.0,88475.0,0.43148]
[1742837879514,0.35243438,88476.0,88475.0,0.43148]
[1742837879715,0.36143935,88476.0,88475.0,0.43148]
[1742837881017,0.35243438,88476.0,88475.0,0.43148]
[1742837881215,0.36144623,88476.0,88475.0,0.43148]
[1742837882523,0.36144623,88476.0,88475.0,0.34700048]
[1742837882728,0.35243438,88476.0,88475.0,0.34700048]
[1742837882918,0.36144659,88476.0,88475.0,0.34700048]
[1742837884724,0.36144692,88476.0,88475.0,0.34700048]
[1742837886523,0.36143473,88476.0,88475.0,0.00148]
[1742837886717,0.1130329,88468.0,88467.0,0.00016954]
[1742837886918,0.59487326,88468.0,88467.0,0.02016954]
[1742837887116,0.77237326,88468.0,88467.0,0.02016954]
[1742837887516,0.89444494,88468.0,88467.0,0.02016954]
[1742837888717,0.89544494,88468.0,88467.0,0.02016954]
[1742837889317,0.88644459,88468.0,88467.0,0.02016954]
[1742837889523,0.89538201,88468.0,88467.0,0.02016954]
[1742837890518,0.89538201,88468.0,88467.0,0.01016954]
[1742837890825,0.89538201,88468.0,88467.0,0.02016954]
[1742837892426,0.89547641,88468.0,88467.0,0.02016954]
[1742837892630,0.89447641,88468.0,88467.0,0.02016954]
[1742837892929,0.89547641,88468.0,88467.0,0.02016954]
[1742837897933,0.89429688,88468.0,88467.0,0.02016954]
[1742837898116,0.89529688,88468.0,88467.0,0.02016954]
[1742837898522,0.89529688,88468.0,88467.0,0.01016954]
[1742837898725,0.89529688,88468.0,88467.0,0.02016954]
[1742837902131,0.89429688,88468.0,88467.0,0.02016954]
[1742837902344,0.89529688,88468.0,88467.0,0.02016954]
[1742837902537,0.89533853,88468.0,88467.0,0.02016954]
[1742837903142,0.89533853,88468.0,88467.0,4e-08]
[1742837903333,0.1130585,88448.0,88447.0,0.00045225]
[1742837903533,0.25256389,88448.0,88447.0,0.14197225]
[1742837903940,0.36562531,88448.0,88447.0,0.14197225]
[1742837904434,0.42822531,88448.0,88447.0,0.14197225]
[1742837904635,0.48462531,88448.0,88447.0,0.14197225]
[1742837904838,0.48462531,88448.0,88447.0,0.14297225]
[1742837905141,0.41953991,88448.0,88447.0,0.25603195]
[1742837905435,0.24388354,88448.0,88447.0,0.25603195]
[1742837905735,0.24388354,88448.0,88447.0,0.37723195]
[1742837906039,0.23498747,88448.0,88447.0,0.37723195]
[1742837906444,0.34804597,88448.0,88447.0,0.37723195]
[1742837906738,0.37415244,88448.0,88447.0,0.37723195]
[1742837906929,0.38295801,88448.0,88447.0,0.37723195]
[1742837907131,0.27151801,88448.0,88447.0,0.37723195]
[1742837907639,0.13235304,88448.0,88447.0,0.37823195]
[1742837907935,0.11321834,88456.0,88455.0,0.1130495]
[1742837908143,0.11381835,88456.0,88455.0,0.8225895]
[1742837908532,0.13869804,88456.0,88455.0,0.8225895]
[1742837908940,0.25174624,88456.0,88455.0,0.8225895]
[1742837910031,0.11383097,88456.0,88455.0,0.84800897]
[1742837910233,0.1130375,88465.0,88464.0,0.1130367]
[1742837910428,0.1130375,88465.0,88464.0,0.7054767]
[1742837910642,0.22608869,88465.0,88464.0,0.7054767]
[1742837911037,0.28788869,88465.0,88464.0,0.7054767]
[1742837912040,0.31368562,88465.0,88464.0,0.7054767]
[1742837912245,0.8212,88481.0,88468.0,0.0565164]
[1742837912447,0.0565141,88472.0,88469.0,0.1130316]
[1742837912645,0.34087365,88470.0,88469.0,0.2646716]
[1742837912841,0.34087655,88470.0,88469.0,0.2646716]
[1742837913449,0.45390695,88470.0,88469.0,0.2646716]
[1742837913641,0.2260637,88470.0,88469.0,0.2646716]
[1742837914549,0.2270637,88470.0,88469.0,0.2646716]
[1742837915249,0.25215928,88470.0,88469.0,0.2646716]
[1742837917965,0.31255928,88470.0,88469.0,0.2646716]
[1742837918163,0.31255928,88470.0,88469.0,0.15164]
[1742837919265,0.31255928,88470.0,88469.0,0.2646716]
[1742837920166,0.33054581,88470.0,88469.0,0.2646716]
[1742837920664,0.33054522,88470.0,88469.0,0.2646716]
[1742837920863,0.39364522,88470.0,88469.0,0.2646716]
[1742837921067,0.39364522,88470.0,88469.0,0.15164]
[1742837921258,0.39364522,88470.0,88469.0,0.2646716]
[1742837925270,0.39364522,88470.0,88469.0,0.3299716]
[1742837925456,0.39364522,88470.0,88469.0,0.3954716]
[1742837925865,0.39364522,88470.0,88469.0,0.3299716]
[1742837926267,0.39373034,88470.0,88469.0,0.3299716]
[1742837928073,0.38450907,88470.0,88469.0,0.3299716]
[1742837928367,0.39372825,88470.0,88469.0,0.3299716]
[1742837930970,0.39372825,88470.0,88469.0,0.3954716]
[1742837932474,0.19250227,88470.0,88469.0,0.3954716]
[1742837932675,0.13210227,88470.0,88469.0,0.3954716]
[1742837933278,0.24513267,88470.0,88469.0,0.3954716]
[1742837933679,0.30943267,88470.0,88469.0,0.3954716]
[1742837933978,0.18737385,88470.0,88469.0,0.3954716]
[1742837934175,0.18737385,88470.0,88469.0,0.4054716]
[1742837934483,0.0613,88479.0,88469.0,0.4054716]
[1742837934484,0.1,88500.0,88475.0,0.3608]
[1742837934670,0.31531891,88494.0,88493.0,0.7216]
[1742837934981,0.32434096,88494.0,88493.0,1.266241]
[1742837935277,0.32434096,88494.0,88493.0,1.15324]
[1742837935278,0.4373551,88494.0,88493.0,1.15324]
[1742837935874,0.50286592,88494.0,88493.0,1.15324]
[1742837936176,0.50286592,88494.0,88493.0,1.266241]
[1742837936381,0.30054671,88494.0,88493.0,1.266241]
[1742837936577,0.30054671,88494.0,88493.0,1.327841]
[1742837937879,0.30054671,88494.0,88493.0,1.21484]
[1742837938178,0.30054671,88494.0,88493.0,1.327841]
[1742837938576,0.30054671,88494.0,88493.0,1.307841]
[1742837939880,0.30054671,88494.0,88493.0,1.369841]
[1742837940983,0.29161384,88494.0,88493.0,1.369841]
[1742837942177,0.30047022,88494.0,88493.0,1.369841]
[1742837943081,0.30047022,88494.0,88493.0,0.77244]
[1742837943476,0.41183022,88494.0,88493.0,0.77244]
[1742837943875,0.40297384,88494.0,88493.0,0.77244]
[1742837946490,0.41183227,88494.0,88493.0,0.77244]
[1742837947580,0.41183227,88494.0,88493.0,0.41164]
[1742837948289,0.41178994,88494.0,88493.0,0.41164]
[1742837948680,0.40297384,88494.0,88493.0,0.41164]
[1742837948881,0.41179045,88494.0,88493.0,0.41164]
[1742837949688,0.41179027,88494.0,88493.0,0.41164]
[1742837950382,0.41181005,88494.0,88493.0,0.41164]
[1742837952094,0.30045005,88494.0,88493.0,0.41164]
[1742837952297,0.41177005,88494.0,88493.0,0.41164]
[1742837954798,0.47367005,88494.0,88493.0,0.41164]
[1742837956198,0.47367798,88494.0,88493.0,0.41164]
[1742837958097,0.47368072,88494.0,88493.0,0.41164]
[1742837959688,0.46483384,88494.0,88493.0,0.41164]
[1742837959992,0.47370808,88494.0,88493.0,0.41164]
[1742837961695,0.4737431,88494.0,88493.0,0.41164]
[1742837962687,0.3624231,88494.0,88493.0,0.41164]
[1742837962893,0.4737431,88494.0,88493.0,0.53784]
[1742837963196,0.47371452,88494.0,88493.0,0.53784]
[1742837966090,0.18749482,88494.0,88493.0,0.650841]
[1742837966297,0.19631545,88494.0,88493.0,0.650841]
[1742837966601,0.19631545,88494.0,88493.0,0.715941]
[1742837966901,0.30931515,88494.0,88493.0,0.715941]
[1742837967293,0.30931569,88494.0,88493.0,0.715941]
[1742837967903,0.19631599,88494.0,88493.0,0.715941]
[1742837968294,0.19631599,88494.0,88493.0,0.6806128]
[1742837969297,0.18749482,88494.0,88493.0,0.6806128]
[1742837969505,0.30049452,88494.0,88493.0,0.6806128]
[1742837970905,0.18749482,88494.0,88493.0,0.6806128]
[1742837971901,0.30049452,88494.0,88493.0,0.6806128]
[1742837980500,0.30934582,88494.0,88493.0,0.6806128]
[1742837980704,0.37394582,88494.0,88493.0,0.6806128]
[1742837982506,0.37400062,88494.0,88493.0,0.6806128]
[1742837984314,0.37399999,88494.0,88493.0,1.0414128]
[1742837985815,0.43669999,88494.0,88493.0,1.0414128]
[1742837986709,0.43669999,88494.0,88493.0,0.9763128]
[1742837988117,0.43672431,88494.0,88493.0,0.9763128]
[1742837990117,0.43672575,88494.0,88493.0,0.9763128]
[1742837991918,0.436732,88494.0,88493.0,0.9763128]
[1742837994616,0.436732,88494.0,88493.0,0.9863128]
[1742837995519,0.45185577,88494.0,88493.0,0.9214128]
[1742837995721,0.45187063,88494.0,88493.0,0.9214128]
[1742837997615,0.45186373,88494.0,88493.0,0.9214128]
[1742837997920,0.33886403,88494.0,88493.0,0.9214128]
[1742837998118,0.45186373,88494.0,88493.0,0.9214128]
[1742837999123,0.33886403,88494.0,88493.0,0.9214128]
[1742837999512,0.33886403,88494.0,88493.0,0.9868128]
[1742838000622,0.45186373,88494.0,88493.0,0.9868128]
[1742838001022,0.45187886,88494.0,88493.0,0.9868128]
[1742838002118,0.33887916,88494.0,88493.0,0.9868128]
[1742838002723,0.45187886,88494.0,88493.0,0.9868128]
[1742838002928,0.45187886,88494.0,88493.0,0.7471118]
[1742838003221,0.1130061,88489.0,88488.0,0.3608]
[1742838003522,0.01008058,88489.0,88488.0,0.51196]
[1742838003827,0.21096766,88489.0,88488.0,0.92499911]
[1742838004126,0.0627,88494.0,88493.0,0.113001]
[1742838004418,0.0627,88494.0,88493.0,0.474121]
[1742838004623,0.17570903,88494.0,88493.0,0.607121]
[1742838005021,0.17630904,88494.0,88493.0,0.607121]
[1742838005217,0.17570903,88494.0,88493.0,0.607121]
[1742838005423,0.17682904,88494.0,88493.0,0.607121]
[1742838007512,0.11412904,88494.0,88493.0,0.617121]
[1742838007721,0.1,88500.0,88499.0,0.1129933]
[1742838007921,0.0628,88503.0,88502.0,0.1129895]
[1742838008223,0.06396,88503.0,88502.0,1.0221095]
[1742838008420,0.28878318,88503.0,88502.0,1.0860095]
[1742838008619,0.28994318,88503.0,88502.0,1.0860095]
[1742838011027,0.35278318,88503.0,88502.0,1.0860095]
[1742838012227,0.35390319,88503.0,88502.0,1.0860095]
[1742838012827,0.22710319,88503.0,88502.0,1.0860095]
[1742838013026,0.35628318,88503.0,88502.0,1.0860095]
[1742838013231,0.35740319,88503.0,88502.0,1.0860095]
[1742838014834,0.42560319,88503.0,88502.0,1.0860095]
[1742838016825,0.42448318,88503.0,88502.0,1.0860095]
[1742838017023,0.31261499,88503.0,88502.0,1.0860095]
[1742838017237,1e-08,88504.0,88502.0,0.97302]
[1742838017435,1e-08,88504.0,88503.0,0.0664]
[1742838017629,1e-08,88504.0,88503.0,0.51788]
[1742838017835,0.11298691,88504.0,88503.0,0.64808]
[1742838018128,0.22597806,88504.0,88503.0,0.64808]
[1742838018537,0.22745806,88504.0,88503.0,0.64808]
[1742838018830,0.22745806,88504.0,88503.0,0.58168]
[1742838020432,0.42605806,88504.0,88503.0,0.58168]
[1742838022236,0.0564991,88496.0,88486.0,0.3608]
[1742838022431,0.1130048,88490.0,88489.0,0.55166264]
[1742838022634,0.11404481,88490.0,88489.0,0.55166264]
[1742838022940,0.22703469,88490.0,88489.0,0.55166264]
[1742838023145,0.22703469,88490.0,88489.0,0.35104]
[1742838023444,0.22703469,88490.0,88489.0,0.4740461]
[1742838023641,0.22703469,88490.0,88489.0,0.6049461]
[1742838025131,0.36293469,88490.0,88489.0,0.6049461]
[1742838026244,0.22703469,88490.0,88489.0,0.6049461]
[1742838027341,0.35783469,88490.0,88489.0,0.6049461]
[1742838027539,0.35783469,88490.0,88489.0,0.49194]
[1742838027745,0.35783469,88490.0,88489.0,0.6049461]
[1742838028133,0.29103469,88490.0,88489.0,0.6049461]
[1742838029033,0.35783469,88490.0,88489.0,0.6049461]
[1742838029444,0.35783469,88490.0,88489.0,0.49194]
[1742838029740,0.35783469,88490.0,88489.0,0.48194]
[1742838030133,0.46903469,88490.0,88489.0,0.35104]
[1742838048246,0.82983469,88490.0,88489.0,0.35104]
[1742838054554,0.85454647,88490.0,88489.0,0.00104]
[1742838054749,0.1130099,88486.0,88485.0,0.00016954]
[1742838054951,0.11360991,88486.0,88485.0,0.01016954]
[1742838055150,0.24150991,88486.0,88485.0,0.01016954]
[1742838055351,0.35452277,88486.0,88485.0,0.01016954]